fUSD/lending_fUSD_20260405
["ID","MTS","AMOUNT","RATE_DAILY","PERIOD"]
[419742281,1775349054364,-1127466.37983419,0.00016,2]
[419742282,1775349054455,-500.0,0.00012063,2]
[419742283,1775349054466,-500.0,0.00012063,2]
[419742284,1775349054477,-500.0,0.00012063,2]
[419742285,1775349054487,-500.0,0.00013699,2]
[419742286,1775349054498,-41173.89217123,0.00016,2]
[419742287,1775349054647,-420.81679979,0.00012063,2]
[419742289,1775349056663,-500.0,0.00010597,2]
[419742290,1775349056674,-500.0,0.00010597,2]
[419742291,1775349056684,-170.55573387,0.00010597,2]
[419742292,1775349056694,-500.0,0.00010597,2]
[419742293,1775349056705,-500.0,0.00010597,2]
[419742294,1775349056715,-376.56367712,0.00010597,2]
[419742295,1775349056725,-500.0,0.00010597,2]
[419742296,1775349056735,-500.0,0.00010597,2]
[419742297,1775349056745,-500.0,0.00010597,2]
[419742298,1775349056755,-500.0,0.00010597,2]
[419742299,1775349056765,-500.0,0.00010597,2]
[419742300,1775349056774,-500.0,0.00010597,2]
[419742301,1775349056784,-500.0,0.00010597,2]
[419742302,1775349056794,-500.0,0.00010597,2]
[419742303,1775349056804,-500.0,0.00010597,2]
[419742304,1775349056814,-500.0,0.00010597,2]
[419742305,1775349056823,-500.0,0.00010597,2]
[419742306,1775349056833,-500.0,0.00010597,2]
[419742307,1775349056843,-500.0,0.00010597,2]
[419742308,1775349056853,-500.0,0.00010597,2]
[419742309,1775349056863,-500.0,0.00010597,2]
[419742310,1775349056872,-500.0,0.00010597,2]
[419742311,1775349056882,-500.0,0.00010597,2]
[419742312,1775349056892,-500.0,0.00010597,2]
[419742313,1775349056902,-500.0,0.00010597,2]
[419742314,1775349056912,-500.0,0.00010597,2]
[419742315,1775349056921,-500.0,0.00010597,2]
[419742316,1775349056933,-500.0,0.00010597,2]
[419742317,1775349056943,-500.0,0.00010597,2]
[419742318,1775349056954,-500.0,0.00010597,2]
[419742319,1775349056963,-500.0,0.00010597,2]
[419742320,1775349056974,-500.0,0.00010597,2]
[419742321,1775349056984,-500.0,0.00010597,2]
[419742322,1775349056996,-500.0,0.00010597,2]
[419742323,1775349057006,-500.0,0.00010597,2]
[419742324,1775349057016,-500.0,0.00010597,2]
[419742325,1775349057026,-500.0,0.00010597,2]
[419742326,1775349057036,-500.0,0.00010597,2]
[419742327,1775349057046,-500.0,0.00010597,2]
[419742328,1775349057055,-500.0,0.00010597,2]
[419742329,1775349057065,-461.27243637,0.00010597,2]
[419742330,1775349057075,-500.0,0.00010597,2]
[419742331,1775349057084,-500.0,0.00010597,2]
[419742332,1775349057095,-500.0,0.00010597,2]
[419742333,1775349057108,-500.0,0.00010597,2]
[419742334,1775349057118,-500.0,0.00010597,2]
[419742335,1775349057128,-500.0,0.00010597,2]
[419742336,1775349057138,-616.03551291,0.00011493,2]
[419742337,1775349057148,-157.95178506,0.00012063,2]
[419742338,1775349057158,-500.0,0.00012063,2]
[419742339,1775349057168,-500.0,0.00012063,2]
[419742340,1775349057177,-155.39202638,0.00012063,2]
[419742341,1775349057187,-500.0,0.00012063,2]
[419742342,1775349057197,-569.34428474,0.00012063,2]
[419742343,1775349057207,-500.0,0.00012063,2]
[419742344,1775349057217,-500.0,0.00012063,2]
[419742345,1775349057226,-500.0,0.00012063,2]
[419742346,1775349057236,-500.0,0.00012063,2]
[419742347,1775349057245,-500.0,0.00012063,2]
[419742348,1775349057255,-500.0,0.00012063,2]
[419742349,1775349057266,-500.0,0.00012063,2]
[419742350,1775349057276,-524.62982434,0.00012063,2]
[419742351,1775349057286,-500.0,0.00012063,2]
[419742352,1775349057296,-500.0,0.00012063,2]
[419742353,1775349057305,-500.0,0.00012063,2]
[419742354,1775349057316,-500.0,0.00012063,2]
[419742355,1775349057326,-500.0,0.00012063,2]
[419742356,1775349057335,-41849.97810095,0.00012919,2]
[419742357,1775349057345,-278.04744801,0.00013699,2]
[419742358,1775349057354,-104813.61495302,0.00016,2]
[419742359,1775349057368,-20820.0646233,0.00016,2]
[419742360,1775349057393,-1067.6817414,0.00016,2]
[419742361,1775349057405,-27171.12931848,0.00016,2]
[419742362,1775349057417,-534.26111805,0.00016,2]
[419742363,1775349058344,-500.0,0.00013698,2]
[419742364,1775349058355,-500.0,0.00013698,2]
[419742365,1775349058365,-52.80623433,0.00013698,2]
[419742366,1775349058779,-600.0,0.00013394,2]
[419742367,1775349268274,524.81,5.232e-05,2]
[419742368,1775349268474,524.81,5.508e-05,2]
[419742369,1775349268720,524.81,5.783e-05,2]
[419742370,1775349268884,524.81,6.059e-05,2]
[419742371,1775349269081,524.81,6.334e-05,2]
[419742372,1775349269273,524.81,6.609e-05,2]
[419742373,1775349269660,524.81,6.885e-05,2]
[419742374,1775349269727,524.81,7.16e-05,2]
[419742375,1775349269853,524.81,7.436e-05,2]
[419742376,1775349270041,524.81,7.711e-05,2]
[419742377,1775349270282,524.81,7.986e-05,2]
[419742378,1775349270429,524.81,8.262e-05,2]
[419742379,1775349270627,524.81,8.537e-05,2]
[419742380,1775349270819,524.81,8.813e-05,2]
[419742381,1775349271004,524.81,9.088e-05,2]
[419742382,1775349271209,524.81,9.363e-05,2]
[419742383,1775349271400,524.81,9.639e-05,2]
[419742384,1775349271620,524.81,9.914e-05,2]
[419742402,1775349310827,161.0,9.914e-05,3]
[419742403,1775349311013,160.0,9.914e-05,3]
[419742404,1775349339317,-222.0,0.0001019,2]
[419742405,1775349350550,-302.81,0.0001019,2]
[419742406,1775349350574,-579.22838083,0.00010353,2]
[419742407,1775349350601,-524.81,0.00010465,2]
[419742408,1775349350625,-680.57979279,0.00010475,2]
[419742409,1775349350646,-4307.08457462,0.00010498,2]
[419742410,1775349350668,-250.0,0.00010572,2]
[419742411,1775349350691,-1200.0,0.00010572,2]
[419742412,1775349350712,-500.0,0.00010573,2]
[419742413,1775349350734,-500.0,0.00010573,2]
[419742414,1775349350756,-455.14370669,0.00010573,2]
[419742415,1775349350777,-500.0,0.00010573,2]
[419742416,1775349350798,-500.0,0.00010573,2]
[419742417,1775349350820,-500.52022278,0.00010573,2]
[419742418,1775349350842,-500.84962238,0.00010573,2]
[419742419,1775349350865,-500.0,0.00010573,2]
[419742420,1775349350887,-500.0,0.00010573,2]
[419742421,1775349350908,-220.78759916,0.00010573,2]
[419742422,1775349350930,-502.25926533,0.00010573,2]
[419742423,1775349350950,-500.0,0.00010573,2]
[419742424,1775349350971,-500.0,0.00010573,2]
[419742425,1775349350993,-500.0,0.00010573,2]
[419742426,1775349361842,303.0,0.00010575,2]
[419742427,1775349364030,500.0,0.00010573,2]
[419742428,1775349365361,500.0,0.00010573,2]
[419742429,1775349365518,500.0,0.00010573,2]
[419742430,1775349394498,3672.92683542,0.00010384,2]
[419742431,1775349479383,10000.01,9.9e-05,2]
[419742432,1775349479405,100.2079718,9.9e-05,2]
[419742433,1775349597949,150.0,9.77e-05,2]
[419742435,1775349776635,1273.17,9.766e-05,2]
[419742436,1775349781892,2000.0,9.921e-05,2]
[419742437,1775349791078,173.54,7.805e-05,2]
[419742438,1775349989494,500.0,9.682e-05,2]
[419742440,1775350049603,1224.63,9.685e-05,2]
[419742441,1775350225837,166.66,9.901e-05,2]
[419742446,1775350232338,-4068.68,9.927e-05,2]
[419742447,1775350232348,-250.0,9.952e-05,2]
[419742448,1775350232358,-248.41,0.00010028,2]
[419742449,1775350232367,-150.0,0.00010072,2]
[419742450,1775350232378,-1056.66,0.00010166,2]
[419742451,1775350232387,-166.66,0.00010228,2]
[419742452,1775350232397,-1200.0,0.00010383,2]
[419742453,1775350232406,-2539.20316458,0.00010384,2]
[419742454,1775350232416,-300.0,0.00010494,2]
[419742455,1775350232425,-300.0,0.00010495,2]
[419742457,1775350232435,-1200.0,0.00010495,2]
[419742459,1775350232444,-1263.67656001,0.00010498,2]
[419742461,1775350232454,-2700.0,0.000105,3]
[419742463,1775350232463,-891.02721424,0.000105,2]
[419742465,1775350232472,-526.15802965,0.000105,2]
[419742467,1775350232482,-166.66,0.00010555,2]
[419742469,1775350232491,-1097.01552459,0.00010561,2]
[419742471,1775350232500,-150.0,0.0001057,2]
[419742474,1775350232510,-299.99,0.00010571,2]
[419742477,1775350232519,-9999.99,0.00010571,2]
[419742480,1775350232528,-1692.66,0.00010571,2]
[419742483,1775350232538,-29684.17,0.00010571,2]
[419742486,1775350232547,-9999.99,0.00010571,2]
[419742488,1775350232556,-5377.52,0.00010571,2]
[419742490,1775350232566,-9999.99,0.00010571,2]
[419742491,1775350232576,-999.99,0.00010571,2]
[419742494,1775350232586,-4784.44,0.00010571,2]
[419742496,1775350232596,-150.99,0.00010571,2]
[419742498,1775350232605,-150.99,0.00010571,2]
[419742499,1775350232615,-2982.55,0.00010571,2]
[419742500,1775350232624,-1620.66,0.00010572,2]
[419742501,1775350232633,-7022.14,0.00010572,2]
[419742502,1775350232643,-355.81,0.00010572,2]
[419742503,1775350232652,-4999.99,0.00010572,2]
[419742504,1775350232661,-500.0,0.00010573,2]
[419742505,1775350232671,-500.564975,0.00010573,2]
[419742506,1775350232680,-500.0,0.00010573,2]
[419742507,1775350232690,-500.0,0.00010573,2]
[419742508,1775350232698,-500.0,0.00010573,2]
[419742509,1775350232708,-500.0,0.00010573,2]
[419742510,1775350232718,-500.0,0.00010573,2]
[419742511,1775350232727,-500.0,0.00010573,2]
[419742512,1775350232737,-500.0,0.00010573,2]
[419742513,1775350232746,-500.0,0.00010573,2]
[419742514,1775350232755,-500.0,0.00010573,2]
[419742515,1775350232765,-500.0,0.00010573,2]
[419742516,1775350232774,-500.0,0.00010573,2]
[419742517,1775350232783,-500.0,0.00010573,2]
[419742518,1775350232792,-8440.867,0.00010575,2]
[419742519,1775350232802,-425.33,0.00010575,2]
[419742520,1775350232812,-500.0,0.00010575,2]
[419742521,1775350232821,-14041.0,0.00010575,2]
[419742522,1775350232831,-324.0,0.00010575,2]
[419742523,1775350232840,-983.0673444,0.00010588,2]
[419742524,1775350232849,-500.0,0.00010591,2]
[419742525,1775350232858,-500.0,0.00010591,2]
[419742526,1775350232868,-500.0,0.00010591,2]
[419742527,1775350232878,-500.0,0.00010591,2]
[419742528,1775350232888,-500.0,0.00010591,2]
[419742529,1775350232898,-500.0,0.00010591,2]
[419742530,1775350232907,-500.0,0.00010591,2]
[419742531,1775350232916,-500.0,0.00010591,2]
[419742532,1775350232925,-200.0,0.00010591,2]
[419742533,1775350232935,-500.0,0.00010591,2]
[419742534,1775350232945,-500.0,0.00010591,2]
[419742535,1775350232954,-500.0,0.00010591,2]
[419742536,1775350232963,-500.0,0.00010591,2]
[419742537,1775350232973,-500.0,0.00010591,2]
[419742538,1775350232982,-500.0,0.00010591,2]
[419742539,1775350232991,-151.0,0.00010591,2]
[419742540,1775350233000,-500.0,0.00010591,2]
[419742541,1775350233010,-151.0,0.00010591,2]
[419742542,1775350233019,-151.0,0.00010591,2]
[419742543,1775350233028,-500.0,0.00010591,2]
[419742544,1775350233037,-151.0,0.00010591,2]
[419742545,1775350233046,-425.91839491,0.00010591,2]
[419742546,1775350233056,-151.0,0.00010591,2]
[419742547,1775350233065,-151.0,0.00010591,2]
[419742548,1775350233074,-151.0,0.00010591,2]
[419742549,1775350233083,-151.0,0.00010591,2]
[419742550,1775350233093,-151.0,0.00010591,2]
[419742551,1775350233102,-151.0,0.00010591,2]
[419742552,1775350233112,-151.0,0.00010591,2]
[419742553,1775350233122,-151.0,0.00010591,2]
[419742554,1775350233131,-151.0,0.00010591,2]
[419742555,1775350233141,-151.0,0.00010591,2]
[419742556,1775350233150,-151.0,0.00010591,2]
[419742557,1775350233160,-151.0,0.00010591,2]
[419742558,1775350233169,-151.0,0.00010591,2]
[419742559,1775350233179,-151.0,0.00010591,2]
[419742560,1775350233188,-151.0,0.00010591,2]
[419742561,1775350233198,-151.0,0.00010591,2]
[419742562,1775350233207,-151.0,0.00010591,2]
[419742563,1775350233217,-151.0,0.00010591,2]
[419742564,1775350233226,-151.0,0.00010591,2]
[419742565,1775350233236,-151.0,0.00010591,2]
[419742566,1775350233246,-151.0,0.00010591,2]
[419742567,1775350233256,-151.0,0.00010591,2]
[419742568,1775350233265,-151.0,0.00010591,2]
[419742569,1775350233275,-151.0,0.00010591,2]
[419742570,1775350233285,-1386.78395259,0.00010591,2]
[419742571,1775350233295,-151.0,0.00010591,2]
[419742572,1775350233304,-151.0,0.00010591,2]
[419742573,1775350233314,-151.0,0.00010591,2]
[419742574,1775350233323,-151.0,0.00010591,2]
[419742575,1775350233333,-151.0,0.00010591,2]
[419742576,1775350233342,-500.0,0.00010597,2]
[419742577,1775350233351,-500.0,0.00010597,2]
[419742578,1775350233361,-500.0,0.00010597,2]
[419742579,1775350233370,-500.0,0.00010597,2]
[419742580,1775350233379,-500.0,0.00010597,2]
[419742581,1775350233389,-500.0,0.00010597,2]
[419742582,1775350233398,-342.27759209,0.00010597,2]
[419742583,1775350233408,-500.0,0.00010597,2]
[419742584,1775350233418,-500.0,0.00010597,2]
[419742585,1775350233427,-500.0,0.00010597,2]
[419742586,1775350233436,-500.0,0.00010597,2]
[419742587,1775350233446,-500.0,0.00010597,2]
[419742588,1775350233456,-500.0,0.00010597,2]
[419742589,1775350233465,-500.0,0.00010597,2]
[419742590,1775350233475,-500.0,0.00010597,2]
[419742591,1775350233484,-500.0,0.00010597,2]
[419742592,1775350233494,-500.0,0.00010597,2]
[419742593,1775350233503,-500.0,0.00010597,2]
[419742594,1775350233512,-500.0,0.00010597,2]
[419742595,1775350233522,-500.0,0.00010597,2]
[419742596,1775350233531,-500.0,0.00010597,2]
[419742597,1775350233541,-500.0,0.00010597,2]
[419742598,1775350233550,-500.0,0.00010597,2]
[419742599,1775350233559,-500.0,0.00010597,2]
[419742600,1775350233568,-500.0,0.00010597,2]
[419742601,1775350233578,-5581.9367904,0.00010597,2]
[419742602,1775350233587,-300546.94821051,0.00010598,2]
[419742603,1775350233600,-26323.2427731,0.00010598,2]
[419742604,1775350233611,-19955.55022726,0.00010598,2]
[419742605,1775350233622,-33447.36317288,0.00010598,2]
[419742606,1775350238379,-2027.98034925,0.00010598,2]
[419742607,1775350238404,-1553.52,0.00010598,2]
[419742608,1775350238429,-2540.46665762,0.00010598,2]
[419742609,1775350238525,-1897.34812686,0.00010598,2]
[419742610,1775350238580,-1623816.36588252,0.00010598,2]
[419742611,1775350238590,-5400.0,0.000106,3]
[419742612,1775350238599,-580.0,0.00010607,2]
[419742613,1775350238609,-250.0,0.00010627,2]
[419742614,1775350238621,-361.0,0.00010627,2]
[419742615,1775350238631,-8100.0,0.000107,3]
[419742616,1775350238642,-367.0,0.00010765,2]
[419742617,1775350238653,-10900.0,0.000108,3]
[419742618,1775350238664,-594.0,0.0001082,2]
[419742619,1775350238675,-500.0,0.00010871,2]
[419742620,1775350238684,-166.66,0.00010882,2]
[419742621,1775350238694,-13600.0,0.000109,3]
[419742622,1775350238704,-4357.3051281,0.000109,2]
[419742623,1775350238713,-171613.38466851,0.000109,2]
[419742624,1775350238723,-5000.0,0.00010919,2]
[419742625,1775350238735,-250.0,0.00010919,2]
[419742626,1775350238744,-250.0,0.00010919,2]
[419742627,1775350238754,-500.0,0.00010959,2]
[419742628,1775350238766,-237.0,0.00010968,2]
[419742629,1775350238776,-1000.0,0.00011121,2]
[419742630,1775350238787,-1000.0,0.00011121,2]
[419742631,1775350238797,-386.01505148,0.00011121,2]
[419742632,1775350238807,-1000.0,0.00011121,2]
[419742633,1775350238817,-1000.0,0.00011121,2]
[419742634,1775350238827,-1000.0,0.00011121,2]
[419742635,1775350238837,-1000.0,0.00011121,2]
[419742636,1775350238848,-1000.0,0.00011121,2]
[419742637,1775350238858,-1000.0,0.00011121,2]
[419742638,1775350238870,-500.40303914,0.00011121,2]
[419742639,1775350238881,-1000.0,0.00011121,2]
[419742640,1775350238891,-1000.0,0.00011121,2]
[419742642,1775350238900,-200.0,0.00011139,2]
[419742644,1775350238912,-1438.09495884,0.00011139,2]
[419742645,1775350238922,-151.0,0.00011139,2]
[419742646,1775350238932,-500.0,0.00011145,2]
[419742647,1775350238944,-166.66,0.00011209,2]
[419742649,1775350238954,-4357.30512804,0.00011271,2]
[419742651,1775350238964,-1263.67656,0.00011398,2]
[419742653,1775350238974,-500.0,0.00011419,2]
[419742655,1775350238984,-1680.0,0.00011421,2]
[419742657,1775350238995,-232.31372017,0.00011424,2]
[419742659,1775350239005,-26056.43086788,0.00011424,2]
[419742661,1775350239015,-670.58255984,0.00011438,2]
[419742663,1775350239025,-1394.11,0.00011474,2]
[419742665,1775350239035,-320.31,0.00011479,2]
[419742667,1775350239045,-287.88,0.00011519,2]
[419742669,1775350239055,-600.0,0.00011522,2]
[419742671,1775350239064,-184.62,0.00011522,2]
[419742674,1775350239074,-110544.91410142,0.00011524,2]
[419742676,1775350239083,-166.66,0.00011536,2]
[419742678,1775350239092,-420.0,0.00011538,2]
[419742680,1775350239102,-373.0,0.00011539,2]
[419742682,1775350239111,-480.0,0.00011539,2]
[419742684,1775350239121,-255.0,0.00011595,2]
[419742686,1775350239130,-241.05180864,0.00011668,2]
[419742688,1775350239139,-1500.0,0.00011668,2]
[419742690,1775350239149,-1500.0,0.00011668,2]
[419742692,1775350239158,-323.48036227,0.00011668,2]
[419742694,1775350239167,-1500.0,0.00011668,2]
[419742696,1775350239176,-1500.0,0.00011668,2]
[419742698,1775350239186,-1339.64282887,0.00011668,2]
[419742700,1775350239195,-1500.0,0.00011668,2]
[419742702,1775350239205,-1500.0,0.00011668,2]
[419742704,1775350239215,-1306.69519715,0.00011668,2]
[419742706,1775350239224,-200.0,0.00011687,2]
[419742708,1775350239233,-1491.30447232,0.00011687,2]
[419742710,1775350239242,-278.13790482,0.00011687,2]
[419742712,1775350239252,-500.0,0.00011693,2]
[419742715,1775350239262,-173.54,0.00011708,2]
[419742717,1775350239272,-3373.92242295,0.00011708,2]
[419742719,1775350239281,-192.713262,0.00011744,2]
[419742721,1775350239290,-1394.11,0.00011748,2]
[419742723,1775350239300,-500.0,0.00011967,2]
[419742725,1775350239309,-1394.11,0.00012022,2]
[419742727,1775350239319,-4357.30512804,0.00012043,2]
[419742729,1775350239328,-320.31,0.00012117,2]
[419742731,1775350239338,-2000.0,0.00012216,2]
[419742733,1775350239347,-606.82963754,0.00012216,2]
[419742735,1775350239356,-2000.0,0.00012216,2]
[419742737,1775350239366,-2000.0,0.00012216,2]
[419742739,1775350239375,-2063.28893586,0.00012216,2]
[419742741,1775350239386,-2000.0,0.00012216,2]
[419742743,1775350239395,-200.0,0.00012235,2]
[419742746,1775350239405,-1546.48273779,0.00012235,2]
[419742748,1775350239414,-414.96680186,0.00012241,2]
[419742750,1775350239424,-1394.11,0.00012296,2]
[419742752,1775350239433,-1263.67656,0.00012299,2]
[419742754,1775350239442,-2351.0,0.00012563,2]
[419742756,1775350239452,-1394.11,0.0001257,2]
[419742758,1775350239462,-629.762425,0.00012625,2]
[419742760,1775350239471,-1634.521362,0.00012625,2]
[419742762,1775350239480,-587.0,0.00012685,2]
[419742764,1775350239490,-433.0,0.00012716,2]
[419742766,1775350239499,-320.31,0.00012754,2]
[419742768,1775350239509,-2500.0,0.00012764,2]
[419742770,1775350239519,-2304.0322388,0.00012764,2]
[419742772,1775350239528,-2500.0,0.00012764,2]
[419742774,1775350239537,-2500.0,0.00012764,2]
[419742776,1775350239547,-200.0,0.00012783,2]
[419742778,1775350239556,-1603.70259909,0.00012783,2]
[419742780,1775350239565,-4357.30512804,0.00012814,2]
[419742782,1775350239574,-1394.11,0.00012844,2]
[419742784,1775350239583,-521.35022304,0.00012898,2]
[419742786,1775350239593,-1183.590556,0.00012944,2]
[419742788,1775350239602,-6069.642163,0.00012944,2]
[419742790,1775350239612,-1813.85983,0.00012944,2]
[419742792,1775350239622,-250.0,0.00013,2]
[419742794,1775350239631,-512.0,0.00013111,2]
[419742796,1775350239641,-250.0,0.00013116,2]
[419742798,1775350239650,-1394.11,0.00013118,2]
[419742801,1775350239660,-3874.274515,0.00013154,2]
[419742803,1775350239669,-1263.67656,0.00013199,2]
[419742805,1775350239678,-891.02721423,0.000132,2]
[419742807,1775350239687,-1312.005055,0.00013208,2]
[419742809,1775350239697,-3011.5547996,0.00013312,2]
[419742811,1775350239706,-3000.0,0.00013312,2]
[419742813,1775350239715,-2406.43792671,0.00013312,2]
[419742815,1775350239725,-500.0,0.00013315,2]
[419742817,1775350239734,-172.04027041,0.0001333,2]
[419742819,1775350239743,-200.0,0.00013331,2]
[419742821,1775350239752,-360.35897972,0.00013331,2]
[419742823,1775350239761,-1394.11,0.00013392,2]
[419742825,1775350239770,-320.31,0.00013392,2]
[419742827,1775350239779,-3240.0,0.00013425,2]
[419742829,1775350239789,-611.77934941,0.00013439,2]
[419742831,1775350239798,-500.0,0.00013515,2]
[419742833,1775350239809,-4357.30512804,0.00013586,2]
[419742835,1775350239819,-500.0,0.00013589,2]
[419742837,1775350239828,-26056.43086786,0.00013662,2]
[419742839,1775350239837,-1394.11,0.00013666,2]
[419742841,1775350239846,-670.58255983,0.00013669,2]
[419742843,1775350239855,-500.0,0.00013698,2]
[419742845,1775350239865,-500.0,0.00013698,2]
[419742847,1775350239874,-500.0,0.00013698,2]
[419742849,1775350239883,-500.0,0.00013698,2]
[419742851,1775350239892,-500.0,0.00013698,2]
[419742853,1775350239902,-500.0,0.00013698,2]
[419742855,1775350239912,-500.0,0.00013698,2]
[419742857,1775350239921,-500.0,0.00013698,2]
[419742859,1775350239930,-500.0,0.00013698,2]
[419742860,1775350239939,-500.0,0.00013698,2]
[419742861,1775350239948,-500.0,0.00013698,2]
[419742862,1775350239958,-500.0,0.00013698,2]
[419742863,1775350239968,-500.0,0.00013698,2]
[419742864,1775350239978,-500.0,0.00013698,2]
[419742865,1775350239987,-500.0,0.00013698,2]
[419742866,1775350239996,-500.0,0.00013698,2]
[419742867,1775350240006,-325.59829244,0.00013698,2]
[419742868,1775350240015,-500.0,0.00013698,2]
[419742869,1775350240025,-500.0,0.00013698,2]
[419742870,1775350240034,-500.0,0.00013698,2]
[419742871,1775350240044,-500.0,0.00013698,2]
[419742872,1775350240053,-500.0,0.00013698,2]
[419742873,1775350240063,-500.0,0.00013698,2]
[419742874,1775350240073,-500.0,0.00013698,2]
[419742875,1775350240084,-500.0,0.00013698,2]
[419742876,1775350240095,-567.75072671,0.00013698,2]
[419742877,1775350240106,-500.0,0.00013698,2]
[419742878,1775350240115,-500.0,0.00013698,2]
[419742879,1775350240124,-500.0,0.00013698,2]
[419742880,1775350240134,-500.0,0.00013698,2]
[419742881,1775350240143,-500.0,0.00013698,2]
[419742882,1775350240153,-500.0,0.00013698,2]
[419742883,1775350240162,-500.0,0.00013698,2]
[419742884,1775350240172,-500.0,0.00013698,2]
[419742885,1775350240181,-500.0,0.00013698,2]
[419742886,1775350240190,-500.0,0.00013698,2]
[419742887,1775350240199,-500.0,0.00013698,2]
[419742888,1775350240209,-500.0,0.00013698,2]
[419742889,1775350240219,-500.0,0.00013698,2]
[419742890,1775350240228,-581.88386575,0.00013698,2]
[419742891,1775350240237,-500.0,0.00013698,2]
[419742892,1775350240247,-500.0,0.00013698,2]
[419742893,1775350240257,-500.0,0.00013698,2]
[419742894,1775350240267,-500.0,0.00013698,2]
[419742895,1775350240276,-500.0,0.00013698,2]
[419742896,1775350240286,-500.0,0.00013698,2]
[419742897,1775350240295,-500.0,0.00013698,2]
[419742898,1775350240305,-500.0,0.00013698,2]
[419742899,1775350240314,-500.0,0.00013698,2]
[419742900,1775350240323,-500.0,0.00013698,2]
[419742901,1775350240332,-500.0,0.00013698,2]
[419742902,1775350240342,-500.0,0.00013698,2]
[419742903,1775350240352,-325.34166394,0.00013698,2]
[419742904,1775350240361,-500.0,0.00013698,2]
[419742905,1775350240371,-500.0,0.00013698,2]
[419742906,1775350240380,-500.0,0.00013698,2]
[419742907,1775350240390,-500.0,0.00013698,2]
[419742908,1775350240399,-500.0,0.00013698,2]
[419742909,1775350240411,-500.0,0.00013698,2]
[419742910,1775350240420,-500.0,0.00013698,2]
[419742911,1775350240431,-500.0,0.00013698,2]
[419742912,1775350240441,-500.0,0.00013698,2]
[419742913,1775350240450,-500.0,0.00013698,2]
[419742914,1775350240460,-500.0,0.00013698,2]
[419742915,1775350240469,-500.0,0.00013698,2]
[419742916,1775350240478,-500.0,0.00013698,2]
[419742917,1775350240487,-500.0,0.00013698,2]
[419742918,1775350240496,-500.0,0.00013698,2]
[419742919,1775350240506,-500.0,0.00013698,2]
[419742920,1775350240515,-500.0,0.00013698,2]
[419742921,1775350240524,-500.0,0.00013698,2]
[419742922,1775350240534,-500.0,0.00013698,2]
[419742923,1775350240543,-500.0,0.00013698,2]
[419742924,1775350240552,-500.0,0.00013698,2]
[419742925,1775350240562,-500.0,0.00013698,2]
[419742926,1775350240571,-500.0,0.00013698,2]
[419742927,1775350240581,-500.0,0.00013698,2]
[419742928,1775350240591,-500.0,0.00013698,2]
[419742929,1775350240600,-500.0,0.00013698,2]
[419742930,1775350240609,-500.0,0.00013698,2]
[419742931,1775350240619,-500.0,0.00013698,2]
[419742932,1775350240628,-500.0,0.00013698,2]
[419742933,1775350240637,-500.0,0.00013698,2]
[419742934,1775350240646,-500.0,0.00013698,2]
[419742935,1775350240655,-500.0,0.00013698,2]
[419742936,1775350240664,-500.0,0.00013698,2]
[419742937,1775350240674,-500.0,0.00013698,2]
[419742938,1775350240683,-500.0,0.00013698,2]